[Event "4NCL Div 1 2024-25"]
[Site "England"]
[Date "2025.04.06"]
[Round "8.1"]
[White "Harvey, Marcus R"]
[Black "Gormally, Daniel W"]
[Result "0-1"]
[Annotator "TA"]
[ECO "A01"]
[WhiteElo "2491"]
[BlackElo "2424"]
[PlyCount "106"]
[EventDate "2024.11.23"]
[EventType "team-tourn"]
[EventCountry "ENG"]
[SourceTitle "playchess.com"]
[Source "ChessBase"]
[SourceQuality "1"]
[TimeControl "40/6000+30:3000+30"]

{[%evp 9,105,-41,0,0,0,0,32,14,20,31,34,-7,0,0,11,0,0,0,0,0,0,0,0,0,0,0,0,-27,-25,-20,-19,-20,-18,-28,-13,-20,-18,-56,-58,-200,-188,-204,-183,-206,-207,-187,-168,-232,-126,-90,-90,-113,-99,-112,-94,-150,-154,-151,-147,-172,-145,-5308,-5441,-4822,-2868,-4706,-736,-4786,-4806,-2581,-2044,-2064,-1881,-1031,-1069,-29981,-29982,-29982,-29983,-29987,-29988,-29988,-29989,-29988,-29988,-29987,-5708,-4702,-1344,-29986,-29987,-29987,-29982,-29989,-29990,-29991,-29992,-29999]} 1. b3 {[%emt 0:25:07]} e5 {[%emt 0:12:03]} 2. Bb2 {[%emt 0:00:10]} Nc6 {[%emt 0:00:31]} 3. e3 {[%emt 0:00:10]} Nge7 {[%emt 0:00:46]} 4. h4 {[%emt 0:02:25][%cal Bh2h4,Bh4h5][%mdl 32]} d5 {[%emt 0:03:06]} 5. h5 $146 {[%emt 0:01:36]} (5. d3 d4 6. e4 Be6 7. g3 Ng6 8. h5 Bb4+ 9. Nd2 Nge7 10. Bh3 Qd7 11. f4 {0-1 Korepanov,P-Blinkov,P RCCA Qual-43/2 corr 1997}) 5... Be6 {[%emt 0:04:53]} 6. Nf3 {[%emt 0:00:55] A01: Nimzowitsch-Larsen Opening.} f6 {[%emt 0:01:48]} 7. d4 {[%emt 0:00:27]} exd4 {[%emt 0:04:49]} 8. Nxd4 {[%emt 0:03:02] White is slightly better.} Nxd4 {[%emt 0:00:18]} 9. Qxd4 {[%emt 0:03:08][%cal Oh5h6]} Nf5 {[%emt 0:05:10]} 10. Qa4+ {[%emt 0:03:37]} c6 {[%emt 0:09:52]} 11. Bd3 {[%emt 0:01:10][%cal Bf1d3,Bd3e4,Be4f3][%mdl 32]} b5 {[%emt 0:07:56]} 12. Qa6 {[%emt 0:07:15]} Qb6 {[%emt 0:07:49]} 13. Qxb6 {[%emt 0:00:25]} axb6 {[%emt 0:00:05]} 14. e4 {[%emt 0:00:33]} dxe4 {[%emt 0:02:41]} 15. Bxe4 {[%emt 0:00:35]} Kd7 {[%emt 0:01:07]} 16. Nc3 {[%emt 0:04:03]} Bc5 {[%emt 0:00:12]} 17. O-O-O+ {[%emt 0:03:12]} Kc7 $1 {[%emt 0:00:07]} 18. g4 {[%emt 0:01:49]} Nd6 {[%emt 0:04:01][%cal Ob5b4]} 19. Bf3 $1 {[%emt 0:01:24]} b4 {[%emt 0:03:06]} (19... Bxf2 $6 20. Rxd6 Be3+ (20... Kxd6 $2 21. Ne4+ Kc7 22. Nxf2 $18) 21. Rd2 $16) 20. Ne2 {[%emt 0:14:49][%cal Bc3e2,Be2f4,Bf4d3][%mdl 32]} h6 {[%emt 0:04:56]} (20... Bd7 $5) 21. Nf4 {[%emt 0:05:47]} Bf7 {[%emt 0:00:46]} 22. Nd3 {[%emt 0:03:52]} Nb5 {[%emt 0:02:09]} 23. Rd2 {[%emt 0:07:18]} Bd6 {[%emt 0:02:42]} (23... Rxa2 24. Nxc5 bxc5 25. Rhd1 $11) 24. a4 {[%emt 0:01:28]} ({Only move:} 24. Kb1 $15) 24... bxa3 $19 {[%emt 0:04:34]} 25. Ba1 {[%emt 0:00:01]} Bd5 {[%emt 0:01:02]} 26. Rh3 {[%emt 0:01:49]} Bxf3 {[%emt 0:00:43]} 27. Rxf3 {[%emt 0:00:02]} c5 {[%emt 0:00:08]} 28. c4 {[%emt 0:03:06] [#]} (28. Re3 {keeps fighting.}) 28... Nd4 {[%emt 0:04:15]} (28... Na7 $1 $19 {...Nc6 would now be deadly.} 29. Kb1 Rhe8) 29. Bxd4 $17 {[%emt 0:00:06]} cxd4 {[%emt 0:00:03]} 30. Kb1 {[%emt 0:00:46]} Rhe8 $36 {[%emt 0:00:08][%mdl 2048] Black is on the roll.} 31. b4 {[%emt 0:06:42]} Re4 {[%emt 0:00:06] Black is more active.} 32. c5 {[%emt 0:00:23]} (32. Ka2 $142) 32... bxc5 {[%emt 0:00:06]} 33. bxc5 {[%emt 0:00:04]} Be5 {[%emt 0:00:14]} 34. Rf5 {[%emt 0:02:39]} Rxg4 {[%emt 0:05:00]} 35. f4 {[%emt 0:01:03][%mdl 8192] [#] Prevents Rg5.} (35. Nxe5 $17 fxe5 36. Rxe5) 35... a2+ $1 $19 {[%emt 0:02:46]} 36. Rxa2 {[%emt 0:00:05]} Rg1+ {[%emt 0:00:05]} 37. Kb2 {[%emt 0:05:42]} Rb8+ {[%emt 0:05:12]} (37... Rg2+ $142 38. Kb3 Rgxa2 (38... Raxa2 $2 39. fxe5 fxe5 40. Rxe5 $19) 39. fxe5 R2a3+ 40. Kc4 Rd8 41. exf6 Rc3+ 42. Kb5 Rb8+ (42... Rxd3 $2 43. f7 $19) 43. Ka4 Rxd3 44. fxg7 Rd1) 38. Ka3 {[%emt 0:00:02] [#]} Rgb1 $1 {[%emt 0:04:12][%cal Rb8a8]} 39. Rb2 {[%emt 0:00:39]} Ra1+ {[%emt 0:02:17]} 40. Ra2 {[%emt 0:00:07]} Ra8+ {[%emt 0:03:03]} 41. Kb3 {[%emt 0:50:52]} R1xa2 {[%emt 0:28:15]} 42. fxe5 {[%emt 0:00:00][%mdl 4096] Endgame KRR-KRN} R2a3+ {[%emt 0:03:34]} 43. Kc4 {[%emt 0:00:00]} Rd8 {[%emt 0:00:05]} 44. Nf4 {[%emt 0:00:00]} Rc3+ {[%emt 0:00:12]} 45. Kb4 {[%emt 0:00:00]} Rb8+ {[%emt 0:00:06]} 46. Ka4 {[%emt 0:00:00]} Rc1 {[%emt 0:04:32][%cal Rc1a1]} (46... Rxc5 47. Ne6+ Kb6 48. Nxc5 Kxc5 49. exf6+ Kc4 50. f7 (50. fxg7 Rg8 $15) 50... Ra8+ 51. Ra5 $15) 47. Nd5+ {[%emt 0:00:00]} Kd7 {[%emt 0:02:42]} (47... Kc6 $142 48. Nb4+ Kxc5 49. Kb3 Rc3+ (49... Rxb4+ {gets mated.} 50. Ka2 Rc2+ 51. Ka1 fxe5 52. Rf8 d3 53. Rd8 Rg4 54. Rc8+ Kb4 55. Rb8+ Ka3 56. Ra8+ Ra4 57. Rxa4+ Kxa4 58. Kb1 Kb3 59. Ka1 Rc1#) 50. Ka2 Kxb4 (50... Rxb4 $2 51. exf6+ Kc4 52. f7 $19) 51. Rf2 Ka4 (51... fxe5 $2 52. Rb2+ Kc4 53. Rxb8 $19) 52. Rb2 Rxb2+ 53. Kxb2 fxe5 54. Ka2 d3 55. Kb2 Rc2+ 56. Kb1 Ka3 57. Ka1 Rc1#) 48. Nb6+ {[%emt 0:00:00]} Ke6 {[%emt 0:00:05]} (48... Kc6 $142 49. exf6 d3 (49... Rxc5 $2 50. Rxc5+ Kxc5 51. Nd7+ Kc4 52. Nxb8 $19) 50. fxg7 d2 (50... Rxc5 51. Rxc5+ Kxc5 52. Nd7+ Kd6 53. Nxb8 $14)) 49. Rf2 {[%emt 0:00:00]} Rxc5 {[%emt 0:00:25] Black mates.} 50. exf6 {[%emt 0:00:00]} gxf6 {[%emt 0:01:54]} 51. Rb2 {[%emt 0:00:00]} Rc6 {[%emt 0:00:31]} 52. Re2+ {[%emt 0:00:00]} Kf7 {[%emt 0:00:13]} 53. Nd5 {[%emt 0:00:00]} Ra6# {[%emt 0:00:36] Weighted Error Value: White=0.42/Black=0.18 (very precise)   Loses game:     	White=1     	---        Mistake:       	White=3     	Black=1      Inaccurate:     	White=3     	Black=1      OK:         	White=11    	Black=14     Best:        	White=2     	Black=1      Strong:       	White=1     	Black=1      Brilliant:      	---       	Black=1} 0-1

[Event "4NCL Div 1 2024-25"]
[Site "England"]
[Date "2025.04.06"]
[Round "8.2"]
[White "Ledger, Andrew J"]
[Black "Speelman, Jon S"]
[Result "1/2-1/2"]
[Annotator "TA"]
[ECO "A10"]
[WhiteElo "2328"]
[BlackElo "2499"]
[PlyCount "34"]
[EventDate "2024.11.23"]
[EventType "team-tourn"]
[EventCountry "ENG"]
[SourceTitle "playchess.com"]
[Source "ChessBase"]
[SourceQuality "1"]
[TimeControl "40/6000+30:3000+30"]

{[%evp 9,34,34,34,29,36,22,30,20,40,26,77,34,39,31,49,2,1,-14,0,-8,27,16,19,16,19,20,27]} 1. c4 {[%emt 0:10:04]} e6 {[%emt 0:11:02]} 2. Nc3 {[%emt 0:00:17]} b6 {[%emt 0:00:35]} 3. e4 {[%emt 0:00:30]} Bb7 {[%emt 0:00:17]} 4. g3 {[%emt 0:00:40]} Bb4 {[%emt 0:06:54]} 5. Nge2 {[%emt 0:00:54]} f5 {[%emt 0:00:39]} 6. Bg2 {[%emt 0:01:10] A10: English Opening: Unusual Replies for Black.} Nf6 {[%emt 0:00:07]} 7. d3 {[%emt 0:01:16][%cal Bd2d3,Bd3e4][%mdl 32]} fxe4 {[%emt 0:03:19]} 8. O-O {[%emt 0:12:59][%cal Rd3e4] White has an edge.} Nc6 {[%emt 0:04:56]} 9. dxe4 {[%emt 0:06:11]} (9. Bxe4 Nxe4 10. dxe4 O-O $17) 9... a5 {[%emt 0:02:30]} (9... O-O $11 {remains equal.}) 10. a3 $146 {[%emt 0:12:36]} (10. h3 d6 11. e5 dxe5 12. Qa4 Qd7 13. Rd1 Bd6 14. Nb5 O-O 15. Nxd6 cxd6 16. Nc3 {1-0 Schoorl,R (2357)-Maris,I (2404) Hoogeveen op 26th 2023 (4)}) 10... Bc5 {[%emt 0:01:12][%cal Bb4c5,Bc5d4,Bd4b2][%mdl 32]} 11. Nf4 {[%emt 0:02:07][%cal Oe4e5] [#]} Ne5 {[%emt 0:02:07][%cal Oe8g8]} 12. b3 {[%emt 0:04:48]} (12. Na4 $14 {should be considered.}) 12... O-O $11 {[%emt 0:02:23]} 13. h3 {[%emt 0:02:28]} Qe8 {[%emt 0:05:05]} 14. Bb2 {[%emt 0:03:49]} Ng6 {[%emt 0:01:07] [#] Threatens to win with ...Nxf4.} 15. Nd3 {[%emt 0:01:19]} Bd4 {[%emt 0:00:40] The position is equal.} 16. Qe2 {[%emt 0:00:49] and e5 should not be overlooked} d6 {[%emt 0:01:38]} 17. Nb5 {[%emt 0:03:26]} Bxb2 {[%emt 0:00:54] Weighted Error Value: White=0.11 (very precise) /Black=0.10 (very precise)   Mistake:       	White=1     	Black=1      Inaccurate:     	White=1     	Black=1      OK:         	White=7     	Black=7      Best:        	---       	Black=1} 1/2-1/2

[Event "4NCL Div 1 2024-25"]
[Site "England"]
[Date "2025.04.06"]
[Round "8.3"]
[White "Wadsworth, Matthew J"]
[Black "Ansell, Simon T"]
[Result "1-0"]
[Annotator "RC"]
[ECO "D02"]
[WhiteElo "2461"]
[BlackElo "2323"]
[PlyCount "45"]
[EventDate "2024.11.23"]
[EventType "team-tourn"]
[EventCountry "ENG"]
[SourceTitle "playchess.com"]
[Source "ChessBase"]
[SourceQuality "1"]
[TimeControl "40/6000+30:3000+30"]

1. Nf3 {[%emt 0:10:05]} d5 {[%emt 0:11:47]} 2. g3 {[%emt 0:00:09]} Nd7 {[%emt 0:01:22]} 3. d4 {[%emt 0:00:42]} Nb6 {[%emt 0:00:26]} 4. Nc3 {[%emt 0:00:19]} Bf5 {[%emt 0:05:16]} 5. Nh4 {[%emt 0:00:14]} Bg4 {[%emt 0:01:43]} 6. h3 {[%emt 0:00:29]} Bh5 {[%emt 0:01:13]} 7. Ng2 {[%emt 0:00:42]} e6 {[%emt 0:14:07]} 8. Nf4 {[%emt 0:00:59]} Bg6 {[%emt 0:00:05]} 9. h4 {[%emt 0:01:03]} Bf5 {[%emt 0:01:13]} 10. e4 {[%emt 0:07:05]} dxe4 {[%emt 0:19:47]} 11. g4 {[%emt 0:00:39]} e5 {[%emt 0:00:28]} 12. gxf5 {[%emt 0:00:21]} exf4 {[%emt 0:00:07]} 13. Bxf4 {[%emt 0:00:19]} Nf6 {[%emt 0:05:50]} 14. Qe2 {[%emt 0:04:40]} Be7 {[%emt 0:13:39]} 15. O-O-O {[%emt 0:05:31]} O-O {[%emt 0:04:11]} 16. Rg1 {[%emt 0:01:32]} Nfd5 {[%emt 0:12:26]} 17. Qg4 {[%emt 0:08:00]} g6 {[%emt 0:04:56]} 18. Nxd5 {[%emt 0:00:30]} Nxd5 {[%emt 0:01:35]} 19. Bh6 {[%emt 0:00:37]} Nf6 {[%emt 0:02:33]} 20. Qh3 {[%emt 0:01:12]} Re8 {[%emt 0:01:46]} 21. Bc4 {[%emt 0:00:31]} Bf8 {[%emt 0:00:49]} 22. Bg5 {[%emt 0:01:12]} Qd6 {[%emt 0:03:11]} 23. h5 {[%emt 0:01:30]} 1-0

[Event "4NCL Div 1 2024-25"]
[Site "England"]
[Date "2025.04.06"]
[Round "8.4"]
[White "Bates, Richard A"]
[Black "Haydon, David L"]
[Result "1/2-1/2"]
[Annotator "ChessBase"]
[ECO "E16"]
[WhiteElo "2315"]
[BlackElo "2294"]
[PlyCount "31"]
[EventDate "2024.11.23"]
[EventType "team-tourn"]
[EventCountry "ENG"]
[SourceTitle "playchess.com"]
[Source "ChessBase"]
[SourceQuality "1"]
[TimeControl "40/6000+30:3000+30"]

1. d4 {[%emt 0:10:04]} Nf6 {[%emt 0:13:18]} 2. Nf3 {[%emt 0:00:19]} e6 {[%emt 0:01:22]} 3. c4 {[%emt 0:00:39]} b6 {[%emt 0:00:05]} 4. g3 {[%emt 0:00:44]} Bb7 {[%emt 0:00:23]} 5. Bg2 {[%emt 0:00:13]} Bb4+ {[%emt 0:00:16]} 6. Bd2 {[%emt 0:00:33]} Qe7 {[%emt 0:02:48]} 7. O-O {[%emt 0:01:11]} Bxd2 {[%emt 0:02:31]} 8. Qxd2 {[%emt 0:00:53]} O-O {[%emt 0:01:44]} 9. Nc3 {[%emt 0:01:46]} d5 {[%emt 0:06:40]} 10. cxd5 {[%emt 0:07:44]} Nxd5 {[%emt 0:09:30]} 11. Rac1 {[%emt 0:02:51]} Nxc3 {[%emt 0:03:50]} 12. Qxc3 {[%emt 0:17:25]} Na6 {[%emt 0:00:38]} 13. Rfd1 {[%emt 0:04:28]} Rac8 {[%emt 0:01:47]} 14. Nh4 {[%emt 0:18:24]} Bxg2 {[%emt 0:03:20]} 15. Nxg2 {[%emt 0:00:17]} c5 {[%emt 0:01:09]} 16. Ne3 {[%emt 0:08:40]} 1/2-1/2

[Event "4NCL Div 1 2024-25"]
[Site "England"]
[Date "2025.04.06"]
[Round "8.5"]
[White "Zhou, Yang-Fan"]
[Black "Webb, Laurence E"]
[Result "1/2-1/2"]
[Annotator "ChessBase"]
[ECO "A43"]
[WhiteElo "2418"]
[BlackElo "2217"]
[PlyCount "54"]
[EventDate "2024.11.23"]
[EventType "team-tourn"]
[EventCountry "ENG"]
[SourceTitle "playchess.com"]
[Source "ChessBase"]
[SourceQuality "1"]
[TimeControl "40/6000+30:3000+30"]

1. d4 {[%emt 0:11:52]} Nf6 {[%emt 0:10:12]} 2. Nf3 {[%emt 0:00:22]} c5 {[%emt 0:02:26]} 3. d5 {[%emt 0:00:17]} b5 {[%emt 0:00:15]} 4. e4 {[%emt 0:01:03]} Nxe4 {[%emt 0:01:19]} 5. Bd3 {[%emt 0:00:08]} Nf6 {[%emt 0:01:32]} 6. Bxb5 {[%emt 0:00:57]} g6 {[%emt 0:00:36]} 7. Be3 {[%emt 0:03:14]} Ba6 {[%emt 0:10:10]} 8. a4 {[%emt 0:11:16]} Bxb5 {[%emt 0:02:42]} 9. axb5 {[%emt 0:00:02]} d6 {[%emt 0:00:12]} 10. Nc3 {[%emt 0:15:30]} Bg7 {[%emt 0:01:18]} 11. O-O {[%emt 0:00:07]} O-O {[%emt 0:01:00]} 12. Ra4 {[%emt 0:01:39]} Nbd7 {[%emt 0:02:15]} 13. Qd2 {[%emt 0:12:10]} Nb6 {[%emt 0:10:55]} 14. Rh4 {[%emt 0:00:05]} Re8 {[%emt 0:00:45]} 15. Bh6 {[%emt 0:05:33]} Bh8 {[%emt 0:01:20]} 16. Ng5 {[%emt 0:00:36]} Qd7 {[%emt 0:09:26]} 17. f4 {[%emt 0:05:00]} a6 {[%emt 0:22:01]} 18. bxa6 {[%emt 0:01:23]} Rxa6 {[%emt 0:00:42]} 19. f5 {[%emt 0:00:46]} Rea8 {[%emt 0:01:16]} 20. fxg6 {[%emt 0:01:44]} hxg6 {[%emt 0:00:35]} 21. Bf8 {[%emt 0:30:26]} Rxf8 {[%emt 0:21:10]} 22. Ne6 {[%emt 0:00:52]} fxe6 {[%emt 0:02:30]} 23. Rxh8+ {[%emt 0:00:08]} Kxh8 {[%emt 0:00:50]} 24. Qh6+ {[%emt 0:00:07]} Kg8 {[%emt 0:00:09]} 25. Qxg6+ {[%emt 0:00:08]} Kh8 {[%emt 0:00:06]} 26. Qh6+ {[%emt 0:00:48]} Kg8 {[%emt 0:00:06]} 27. Qg6+ {[%emt 0:00:05]} Kh8 {[%emt 0:00:10]} 1/2-1/2

[Event "4NCL Div 1 2024-25"]
[Site "England"]
[Date "2025.04.06"]
[Round "8.6"]
[White "Ledger, Dave J"]
[Black "Turner, Matthew J"]
[Result "0-1"]
[Annotator "ChessBase"]
[ECO "C54"]
[WhiteElo "2191"]
[BlackElo "2432"]
[PlyCount "64"]
[EventDate "2024.11.23"]
[EventType "team-tourn"]
[EventCountry "ENG"]
[SourceTitle "playchess.com"]
[Source "ChessBase"]
[SourceQuality "1"]
[TimeControl "40/6000+30:3000+30"]

1. e4 {[%emt 0:10:08]} e5 {[%emt 0:10:11]} 2. Nf3 {[%emt 0:00:33]} Nc6 {[%emt 0:00:06]} 3. Bc4 {[%emt 0:00:05]} Bc5 {[%emt 0:00:32]} 4. c3 {[%emt 0:00:39]} Nf6 {[%emt 0:00:14]} 5. d3 {[%emt 0:00:36]} d6 {[%emt 0:03:01]} 6. O-O {[%emt 0:01:11]} a6 {[%emt 0:02:26]} 7. a4 {[%emt 0:01:45]} Ba7 {[%emt 0:01:24]} 8. Nbd2 {[%emt 0:01:32]} O-O {[%emt 0:00:48]} 9. Re1 {[%emt 0:02:58]} Ne7 {[%emt 0:05:04]} 10. Nf1 {[%emt 0:01:49]} Ng6 {[%emt 0:01:18]} 11. Ng3 {[%emt 0:00:59]} h6 {[%emt 0:04:36]} 12. d4 {[%emt 0:05:50]} Bg4 {[%emt 0:02:03]} 13. Be2 {[%emt 0:07:55]} Nf4 {[%emt 0:14:49]} 14. Bxf4 {[%emt 0:01:21]} exf4 {[%emt 0:00:09]} 15. Nf5 {[%emt 0:02:29]} Nxe4 {[%emt 0:01:31]} 16. N3h4 {[%emt 0:11:43]} Bxf5 {[%emt 0:09:02]} 17. Nxf5 {[%emt 0:00:07]} Qg5 {[%emt 0:02:11]} 18. Bd3 {[%emt 0:13:50]} d5 {[%emt 0:00:39]} 19. f3 {[%emt 0:00:34]} Qxf5 {[%emt 0:00:14]} 20. fxe4 {[%emt 0:00:05]} dxe4 {[%emt 0:00:10]} 21. Rxe4 {[%emt 0:01:04]} c5 {[%emt 0:01:31]} 22. Qf3 {[%emt 0:07:48]} cxd4 {[%emt 0:01:06]} 23. c4 {[%emt 0:03:11]} Qd7 {[%emt 0:02:36]} 24. Rae1 {[%emt 0:06:08]} Rae8 {[%emt 0:05:20]} 25. h4 {[%emt 0:05:14]} Rxe4 {[%emt 0:10:41]} 26. Qxe4 {[%emt 0:00:28]} f5 {[%emt 0:00:39]} 27. Qxf4 {[%emt 0:02:09]} Bb8 {[%emt 0:03:55]} 28. Qf3 {[%emt 0:00:10]} Qc7 {[%emt 0:01:55]} 29. Bxf5 {[%emt 0:04:25]} Qh2+ {[%emt 0:03:53]} 30. Kf1 {[%emt 0:00:33]} Kh8 {[%emt 0:00:47]} 31. h5 {[%emt 0:02:27]} d3 {[%emt 0:07:16]} 32. g4 {[%emt 0:03:24]} Ba7 {[%emt 0:00:52]} 0-1

[Event "4NCL Div 1 2024-25"]
[Site "England"]
[Date "2025.04.06"]
[Round "8.7"]
[White "Hunt, Harriet V"]
[Black "Varney, Zoe"]
[Result "1/2-1/2"]
[Annotator "ChessBase"]
[ECO "C65"]
[WhiteElo "2298"]
[BlackElo "1996"]
[PlyCount "117"]
[EventDate "2024.11.23"]
[EventType "team-tourn"]
[EventCountry "ENG"]
[SourceTitle "playchess.com"]
[Source "ChessBase"]
[SourceQuality "1"]
[TimeControl "40/6000+30:3000+30"]

1. e4 {[%emt 0:10:03]} e5 {[%emt 0:10:06]} 2. Nf3 {[%emt 0:00:06]} Nc6 {[%emt 0:00:05]} 3. Bb5 {[%emt 0:00:07]} Nf6 {[%emt 0:00:07]} 4. d3 {[%emt 0:00:17]} Bc5 {[%emt 0:00:06]} 5. O-O {[%emt 0:00:15]} Nd4 {[%emt 0:00:13]} 6. Nxd4 {[%emt 0:00:13]} Bxd4 {[%emt 0:00:32]} 7. c3 {[%emt 0:00:14]} Bb6 {[%emt 0:00:08]} 8. Na3 {[%emt 0:00:44]} c6 {[%emt 0:00:11]} 9. Ba4 {[%emt 0:00:11]} d6 {[%emt 0:00:17]} 10. Nc4 {[%emt 0:03:27]} Bc7 {[%emt 0:00:11]} 11. Bc2 {[%emt 0:00:30]} Be6 {[%emt 0:03:47]} 12. Ne3 {[%emt 0:02:14]} d5 {[%emt 0:07:16]} 13. Qf3 {[%emt 0:04:51]} Qd7 {[%emt 0:05:26]} 14. a4 {[%emt 0:07:35]} O-O-O {[%emt 0:17:45]} 15. Nf5 {[%emt 0:10:41]} Nh5 {[%emt 0:19:14]} 16. Re1 {[%emt 0:20:36]} g6 {[%emt 0:14:03]} 17. Nh6 {[%emt 0:01:04]} f6 {[%emt 0:08:48]} 18. g3 {[%emt 0:06:38]} Bd6 {[%emt 0:05:40]} 19. Bd1 {[%emt 0:04:46]} Rdf8 {[%emt 0:04:08]} 20. b4 {[%emt 0:10:47]} d4 {[%emt 0:03:27]} 21. Bd2 {[%emt 0:00:34]} f5 {[%emt 0:06:05]} 22. cxd4 {[%emt 0:04:18]} f4 {[%emt 0:02:12]} 23. g4 {[%emt 0:03:17]} Qg7 {[%emt 0:00:06]} 24. d5 {[%emt 0:01:32]} cxd5 {[%emt 0:01:18]} 25. exd5 {[%emt 0:00:15]} Bd7 {[%emt 0:00:15]} 26. g5 {[%emt 0:01:07]} Kb8 {[%emt 0:00:11]} 27. Rb1 {[%emt 0:01:39]} Rc8 {[%emt 0:00:59]} 28. h4 {[%emt 0:16:29]} Rhe8 {[%emt 0:00:24]} 29. Qg2 {[%emt 0:00:00]} Nf6 {[%emt 0:01:06]} 30. b5 {[%emt 0:00:00]} Ng8 {[%emt 0:00:27]} 31. Nxg8 {[%emt 0:00:00]} Qxg8 {[%emt 0:00:08]} 32. Bf3 {[%emt 0:00:00]} Bf5 {[%emt 0:00:46]} 33. Be4 {[%emt 0:00:00]} Qf7 {[%emt 0:00:04]} 34. Bb4 {[%emt 0:00:00]} Bxb4 {[%emt 0:00:05]} 35. Rxb4 {[%emt 0:00:00]} Qd7 {[%emt 0:00:09]} 36. Rc4 {[%emt 0:00:00]} Bh3 {[%emt 0:00:35]} 37. Qf3 {[%emt 0:00:00]} Bg4 {[%emt 0:00:44]} 38. Qh1 {[%emt 0:00:00]} Bd1 {[%emt 0:01:02]} 39. Qg2 {[%emt 0:02:26]} Rxc4 {[%emt 0:01:14]} 40. dxc4 {[%emt 0:00:05]} Bxa4 {[%emt 0:00:16]} 41. Qf3 {[%emt 0:26:32]} Qc8 {[%emt 0:37:42]} 42. Bd3 {[%emt 0:01:54]} a6 {[%emt 0:03:14]} 43. bxa6 {[%emt 0:03:24]} bxa6 {[%emt 0:00:44]} 44. Bf1 {[%emt 0:01:00]} Ka7 {[%emt 0:02:40]} 45. Ra1 {[%emt 0:02:53]} Bc2 {[%emt 0:02:40]} 46. Ra5 {[%emt 0:01:28]} Rf8 {[%emt 0:02:39]} 47. c5 {[%emt 0:09:34]} e4 {[%emt 0:00:23]} 48. Bxa6 {[%emt 0:00:42]} Qxc5 {[%emt 0:02:34]} 49. Rxc5 {[%emt 0:01:40]} exf3 {[%emt 0:00:05]} 50. Rxc2 {[%emt 0:02:29]} Kxa6 {[%emt 0:00:03]} 51. Rc3 {[%emt 0:00:13]} Kb6 {[%emt 0:01:10]} 52. Kh2 {[%emt 0:01:09]} Rf5 {[%emt 0:01:48]} 53. Rd3 {[%emt 0:01:16]} Kc7 {[%emt 0:00:19]} 54. d6+ {[%emt 0:00:26]} Kd7 {[%emt 0:00:17]} 55. Kh3 {[%emt 0:00:06]} h5 {[%emt 0:00:44]} 56. gxh6 {[%emt 0:00:11]} Rh5 {[%emt 0:00:15]} 57. Kg4 {[%emt 0:00:17]} Rxh6 {[%emt 0:00:23]} 58. Rxf3 {[%emt 0:01:09]} Kxd6 {[%emt 0:00:29]} 59. Rxf4 {[%emt 0:00:08]} 1/2-1/2

[Event "4NCL Div 1 2024-25"]
[Site "England"]
[Date "2025.04.06"]
[Round "8.8"]
[White "Nelson, Jonathan P"]
[Black "Jackson, James P"]
[Result "0-1"]
[Annotator "ChessBase"]
[ECO "C45"]
[WhiteElo "2098"]
[BlackElo "2373"]
[PlyCount "82"]
[EventDate "2024.11.23"]
[EventType "team-tourn"]
[EventCountry "ENG"]
[SourceTitle "playchess.com"]
[Source "ChessBase"]
[SourceQuality "1"]
[TimeControl "40/6000+30:3000+30"]

1. e4 {[%emt 0:10:03]} e5 {[%emt 0:11:21]} 2. Nf3 {[%emt 0:00:10]} Nc6 {[%emt 0:00:06]} 3. d4 {[%emt 0:00:22]} exd4 {[%emt 0:00:06]} 4. Nxd4 {[%emt 0:00:07]} Nf6 {[%emt 0:01:01]} 5. Nxc6 {[%emt 0:00:15]} bxc6 {[%emt 0:00:09]} 6. Bd3 {[%emt 0:00:11]} d5 {[%emt 0:02:18]} 7. O-O {[%emt 0:00:11]} Be7 {[%emt 0:00:26]} 8. e5 {[%emt 0:00:25]} Nd7 {[%emt 0:04:01]} 9. f4 {[%emt 0:00:17]} Nc5 {[%emt 0:13:03]} 10. Nd2 {[%emt 0:08:03]} Nxd3 {[%emt 0:07:48]} 11. cxd3 {[%emt 0:00:04]} Bf5 {[%emt 0:00:09]} 12. Nb3 {[%emt 0:16:35]} c5 {[%emt 0:00:17]} 13. Be3 {[%emt 0:02:19]} d4 {[%emt 0:01:12]} 14. Bf2 {[%emt 0:01:11]} Qd5 {[%emt 0:05:45]} 15. Na5 {[%emt 0:01:07]} Rb8 {[%emt 0:06:24]} 16. b3 {[%emt 0:04:01]} h5 {[%emt 0:11:53]} 17. Be1 {[%emt 0:01:32]} Rh6 {[%emt 0:02:45]} 18. Qf3 {[%emt 0:02:14]} Qd7 {[%emt 0:01:59]} 19. Rc1 {[%emt 0:04:03]} h4 {[%emt 0:01:08]} 20. b4 {[%emt 0:16:52]} h3 {[%emt 0:01:46]} 21. g3 {[%emt 0:03:52]} cxb4 {[%emt 0:18:02]} 22. Nc6 {[%emt 0:03:14]} Rxc6 {[%emt 0:00:13]} 23. Rxc6 {[%emt 0:03:28]} Bxd3 {[%emt 0:03:59]} 24. e6 {[%emt 0:06:25]} fxe6 {[%emt 0:00:30]} 25. Rf2 {[%emt 0:00:50]} Bf5 {[%emt 0:02:46]} 26. Rc1 {[%emt 0:11:07]} Rb5 {[%emt 0:05:05]} 27. g4 {[%emt 0:00:46]} Bg6 {[%emt 0:00:05]} 28. Qxh3 {[%emt 0:00:46]} Kf7 {[%emt 0:00:07]} 29. f5 {[%emt 0:04:55]} exf5 {[%emt 0:00:06]} 30. gxf5 {[%emt 0:00:04]} Rxf5 {[%emt 0:01:35]} 31. Rxf5+ {[%emt 0:04:35]} Bxf5 {[%emt 0:00:13]} 32. Qb3+ {[%emt 0:00:09]} Be6 {[%emt 0:00:29]} 33. Qf3+ {[%emt 0:00:05]} Kg8 {[%emt 0:00:13]} 34. Bg3 {[%emt 0:02:07]} c5 {[%emt 0:00:48]} 35. Rf1 {[%emt 0:01:01]} Bd5 {[%emt 0:01:43]} 36. Qh5 {[%emt 0:00:38]} Bxa2 {[%emt 0:03:40]} 37. Be5 {[%emt 0:01:01]} Bf8 {[%emt 0:00:45]} 38. Rf3 {[%emt 0:02:49]} Bf7 {[%emt 0:00:31]} 39. Qh4 {[%emt 0:00:19]} Bd5 {[%emt 0:02:37]} 40. Rh3 {[%emt 0:00:49]} Qf5 {[%emt 0:00:25]} 41. Qg3 {[%emt 0:26:14]} b3 {[%emt 0:23:21]} 0-1